Cogmind - Beta 13 @@@ ROGUE MODE // 2024.06.16 @ 15:50:02 Player: N.W.L Result: Destroyed by P-80 Master with Gamma Rifle Performance ------------- Evolutions (9) 4500 Regions Visited (25) 5000 Robots Destroyed (95) 475 Value Destroyed (4703) 4703 Prototype IDs (108) 2160 Alien Tech Used (6) 1200 Bonus (11688) 11688 TOTAL SCORE: 29726 Bonus ------- Pacifist 634 High Alert Combat Kills 362 Follower Combat Kills 1355 Entered Garrisons 200 Entered DSFs 500 Network Hubs Disabled 400 Aligned with FarCom 300 Met Zhirov 300 Built Enhanced Grunts 300 A7 Reached Mainframe 300 Met R17 at Cetus 500 Found Hidden Lab 3000 Used Core Reset Matrix 3000 Met R17 at Research 2000 Pursued by Intercept 1000 Friendly Fire -2463 Cogmind --------- Core Integrity 0/1600 Matter 226/300 Energy 100/100 System Corruption 26% Temperature Cool (0) Movement Core (200) Ox3 Location -1/Access Parts ------- > --- POWER (2) -------- (None) > --- PROPULSION (10) -- (None) > --- UTILITY (11) ----- (None) > --- WEAPON (2) ------- Matter Neutralizer > --- INVENTORY (5) ---- Experimental Thermal Shield Graviton Cannon Guided Remote Datajack Peak State ------------ > --- POWER ------------ Graviton Reactor Light Quantum Reactor > --- PROPULSION ------- Improved Diametric Drive Improved Diametric Drive Cooled Impulse Thruster Cooled Impulse Thruster Cooled Impulse Thruster Cooled Impulse Thruster Cooled Impulse Thruster Cooled Impulse Thruster Impulse Thruster Array > --- UTILITY ---------- Advanced Cooling System Advanced Coolant Injector Large Storage Unit Enhanced Optical Array Advanced Transmission Jammer Experimental Core Shielding Medium Regenerative Plating Improved Hacking Suite Advanced Hacking Suite Experimental Hacking Suite Quantum Router > --- WEAPON ----------- Ragnarok Missile Launcher Guided Remote Datajack > --- INVENTORY -------- Diametric Drive Experimental Energy Well Matter Compressor Experimental Thermal Shield Improved Trap Extractor Transdimensional Reconstructor Core Regenerator Heavy Tesla Rifle Latent Energy Streamer Enhanced Nova Cannon Warp Cannon Graviton Cannon Vibroblade [Rating: 208] Favorites ----------- Power Light Particle Reactor Engine Deuterium Engine Power Core Fission Core Reactor Light Particle Reactor Propulsion Cooled VTOL Module Treads Improved Heavy Treads Hover Unit Improved Gyrokinetic Inverter Flight Unit Cooled VTOL Module Utility Hacking Suite Device Advanced Cooling System Storage Large Storage Unit Processor Enhanced Optical Array Hackware Hacking Suite Protection Medium Regenerative Plating Artifact LC Capacitor Weapon Vibroblade Energy Gun Heavy Tesla Rifle Energy Cannon Advanced Plasma Cannon Ballistic Gun Enhanced Coil Gun Ballistic Cannon Graviton Cannon Launcher Tiamat Missile Launcher Special Weapon Remote Datajack Slashing Weapon Vibroblade Special Melee Weapon Improved Datajack Build | -11 -10 -10 -10 -9 -8 -7 -7 -7 -6 -5 -5 -5 -5 -4 -4 -4 -4 -4 -4 -3 -3 -3 -2 -2 -1 ------- Run | Yrd Mat Min Exi Min Mat Fac Sto Gar Fac Fac Upp Upp Zhi Pro Fac Ext Cet Arc Hub Res Arm Lab Res DSF Acc Slots Evolved 18 | . . . . . 4 2 . . 2 2 . . . . 2 . . . . 2 . . 2 . 2 Power 1 | . . . . . . . . . . . . . . . . . . . . . . . 1 . . Propulsion 8 | . . . . . 2 1 . . . 1 . . . . 1 . . . . 2 . . 1 . . Utility 9 | . . . . . 2 1 . . 2 1 . . . . 1 . . . . . . . . . 2 Weapon . | . . . . . . . . . . . . . . . . . . . . . . . . . . Parts Attached 329 | . . . 1 . 1 6 6 15 23 32 9 4 9 6 17 21 10 11 15 39 27 22 14 12 29 Power 15 | . . . . . . . . 2 2 1 . . . . . 1 . 2 2 . 1 1 1 . 2 Engine 3 | . . . . . . . . 2 1 . . . . . . . . . . . . . . . . Core 1 | . . . . . . . . . 1 . . . . . . . . . . . . . . . . Reactor 11 | . . . . . . . . . . 1 . . . . . 1 . 2 2 . 1 1 1 . 2 Propulsion 54 | . . . . . 1 1 3 3 7 5 . . 1 1 3 2 . 1 . 16 4 . 1 . 5 Treads 2 | . . . . . . . . 2 . . . . . . . . . . . . . . . . . Leg . | . . . . . . . . . . . . . . . . . . . . . . . . . . Wheel . | . . . . . . . . . . . . . . . . . . . . . . . . . . Hover 1 | . . . . . . . . . . . . . . . . . . . . . . . . . 1 Flight 51 | . . . . . 1 1 3 1 7 5 . . 1 1 3 2 . 1 . 16 4 . 1 . 4 Utility 131 | . . . . . . 4 2 3 11 12 6 4 6 1 7 4 2 4 6 13 7 14 8 10 7 Device 75 | . . . . . . 1 1 1 6 8 5 4 3 1 5 1 1 2 6 10 6 5 1 5 3 Storage 8 | . . . . . . 1 . 1 1 1 . . 1 . . . . . . . . 1 1 . 1 Processor 6 | . . . . . . 2 . . 2 . . . . . . . . . . . . . 1 1 . Hackware 17 | . . . . . . . 1 1 2 1 . . 1 . 1 1 . 2 . 3 1 1 2 . . Protection 24 | . . . . . . . . . . 2 1 . 1 . 1 2 1 . . . . 6 3 4 3 Artifact 1 | . . . . . . . . . . . . . . . . . . . . . . 1 . . . Weapon 129 | . . . 1 . . 1 1 7 3 14 3 . 2 4 7 14 8 4 7 10 15 7 4 2 15 Energy Gun 3 | . . . . . . . . . . . . . . . . . . . . . . 1 2 . . Energy Cannon 38 | . . . . . . . . 3 1 6 . . . 1 4 4 2 1 1 3 2 2 2 . 6 Ballistic Gun 10 | . . . . . . . . . . . 1 . 1 . 2 2 3 1 . . . . . . . Ballistic Cannon 8 | . . . . . . . . . . . 1 . . . . 1 . 1 1 . 3 . . 1 . Launcher 17 | . . . . . . . . 1 . 3 . . . 1 . 4 1 . . 2 2 1 . . 2 Special Weapon 15 | . . . . . . . . . . . . . . . 1 3 2 1 1 . 4 2 . . 1 Impact Weapon . | . . . . . . . . . . . . . . . . . . . . . . . . . . Slashing Weapon 29 | . . . . . . . 1 3 . 3 . . 1 . . . . . 4 5 4 1 . 1 6 Piercing Weapon . | . . . . . . . . . . . . . . . . . . . . . . . . . . Special Melee Weapon 9 | . . . 1 . . 1 . . 2 2 1 . . 2 . . . . . . . . . . . Unidentified Prototypes 38 | . . . . . 1 . 1 . 1 4 1 . 3 . . . 2 . 2 8 . 11 3 . 1 Corrupted Parts 1 | . . . . . . . . . . . . . . . . . 1 . . . . . . . . System Corruption 9 | . . . . . . . . . . . . . . . . . 9 . . . . . . . . Parts Lost 42 | . . . . . . . 1 5 . . 1 . . . 3 2 . . . 2 3 1 . . 24 Power 3 | . . . . . . . . . . . . . . . . . . . . . 1 . . . 2 Propulsion 15 | . . . . . . . . 2 . . . . . . 1 . . . . 1 . . . . 11 Utility 19 | . . . . . . . . 3 . . 1 . . . 2 2 . . . 1 2 1 . . 7 Weapon 5 | . . . . . . . 1 . . . . . . . . . . . . . . . . . 4 Highest Loss Streak 18 | . . . . . . . 1 2 . . 1 . . . 3 1 . . . 1 3 1 . . 18 To Critical Strikes . | . . . . . . . . . . . . . . . . . . . . . . . . . . Average Slot Usage (%) 84 | . . . 6 14 16 29 73 78 96 94 91 94 89 88 84 88 89 88 83 85 94 94 94 95 68 Reactor 3 | . . . . . . . . . . . 5 5 5 5 5 5 5 5 4 4 4 4 7 8 4 Flight 28 | . . . . . 7 11 33 21 32 32 29 29 26 23 26 26 26 25 21 28 38 38 39 39 24 Device 11 | . . . . . . . 1 . 10 8 21 23 19 17 15 18 12 15 15 13 13 7 8 8 8 Storage 5 | . . . . . . 7 7 10 8 5 5 5 5 5 5 5 5 5 5 4 4 4 4 4 3 Processor 6 | . . . . . . 7 15 15 13 11 5 5 5 5 5 5 5 5 5 4 4 4 4 4 3 Hackware 14 | . . . . . . . 6 6 12 17 11 11 14 17 14 16 21 21 21 19 19 17 14 17 13 Protection 1 | . . . . . . . . . . 1 . . . . 3 . 3 . . . . 5 6 3 5 Energy Cannon 1 | . . . . . . . . 1 . 2 . . . . . 2 2 1 1 . 2 . . . 1 Ballistic Gun 1 | . . . . . . . . . . . 4 5 . 5 . 3 3 3 1 . . . . . . Slashing Weapon 3 | . . . . . . . 3 10 6 . . . 2 . . . . . 2 8 5 4 4 4 3 Special Melee Weapon 1 | . . . 6 14 9 2 4 . 3 5 2 5 5 4 1 . . . . . . . . . . Naked Turns 217 | . 81 43 91 . . . . . . . . . . . . . . . . . . . . . 2 Heaviest Build 80 | . . . 1 1 1 6 14 28 30 45 46 47 47 54 57 62 62 64 63 53 63 70 79 71 80 Greatest Support 150 | 3 3 3 3 3 5 11 26 150 32 45 45 45 48 48 56 54 47 50 50 78 80 65 72 72 73 Greatest Overweight (x) 13 | . . . . . . . 1 4 1 . 1 1 1 1 1 1 1 1 1 . . 1 1 . 13 Average Overweight (x) . | . . . . . . . . . . . . . . . . . . . . . . . . . . Largest Inventory Capacity 15 | 5 5 5 5 5 5 8 8 8 10 15 15 15 15 15 15 15 15 15 15 15 15 15 15 15 15 Average Capacity 12 | 5 5 5 5 5 5 7 8 8 8 12 15 15 15 15 15 15 15 15 15 15 15 15 15 15 12 Most Carried 15 | . 3 3 4 5 5 8 8 8 10 15 15 15 15 15 15 15 15 15 15 15 15 15 15 15 15 Average Carried 12 | . 1 3 3 3 5 7 7 6 7 12 14 14 14 14 13 14 14 14 14 13 14 14 14 15 10 Final Capacity 15 | 5 5 5 5 5 5 8 8 8 10 15 15 15 15 15 15 15 15 15 15 15 15 15 15 15 5 Final Carried 15 | . 3 3 3 5 5 7 8 8 10 15 15 15 15 14 15 15 15 15 15 15 15 15 15 15 3 Class Distribution -------------------- 58% | Hacker-Sprinter 11% | Hacker-Mutant 10% | Mutant 7% | Wizard-Sprinter 4% | Sprinter Dominant Class ---------------- Mutant | -10/Materials Mutant | -10/Mines Mutant | -10/Exiles Mutant | -9/Mines Mutant | -8/Materials Mutant | -7/Factory Sprinter | -7/Storage Mutant | -7/Garrison Hacker-Sprinter | -6/Factory Hacker-Sprinter | -5/Factory Hacker-Sprinter | -5/Upper Caves Hacker-Sprinter | -5/Upper Caves Hacker-Sprinter | -5/Zhirov Hacker-Sprinter | -4/Proximity Caves Hacker-Sprinter | -4/Factory Hacker-Sprinter | -4/Extension Hacker-Mutant | -4/Cetus Hacker-Mutant | -4/Archives Hacker-Sprinter | -4/Hub_04(d) Hacker-Sprinter | -3/Research Hacker-Sprinter | -3/Armory Wizard-Mutant | -3/Lab Hacker-Sprinter | -2/Research Wizard-Sprinter | -2/DSF Wizard-Sprinter | -1/Access Resources | -11 -10 -10 -10 -9 -8 -7 -7 -7 -6 -5 -5 -5 -5 -4 -4 -4 -4 -4 -4 -3 -3 -3 -2 -2 -1 ----------- Run | Yrd Mat Min Exi Min Mat Fac Sto Gar Fac Fac Upp Upp Zhi Pro Fac Ext Cet Arc Hub Res Arm Lab Res DSF Acc Matter Collected 4604 | . 250 . . 10 . . 73 227 180 268 249 141 85 44 238 349 159 245 182 745 527 276 63 83 210 Remotely . | . . . . . . . . . . . . . . . . . . . . . . . . . . Salvage Created 6358 | . . . . . . . 73 896 136 253 208 63 203 . 4 405 438 147 703 900 420 167 63 106 1173 Parts 208 | . . . . . . . 1 24 4 3 7 2 1 . . 18 20 9 22 28 15 9 2 2 41 Haulers Intercepted 10 | . . . . . . . . . . 1 . . . . . . . . 3 6 . . . . . Recyclers Shooed 3 | . . . . . . . . . 2 . . . . . . . . . 1 . . . . . . Parts Field Recycled . | . . . . . . . . . . . . . . . . . . . . . . . . . . Retrieved Matter . | . . . . . . . . . . . . . . . . . . . . . . . . . . Parts Self-Destructed 9 | . . . . . . . . . . . 6 3 . . . . . . . . . . . . . Prevented 4 | . . . . . . . . . . . . 4 . . . . . . . . . . . . . Kills | -11 -10 -10 -10 -9 -8 -7 -7 -7 -6 -5 -5 -5 -5 -4 -4 -4 -4 -4 -4 -3 -3 -3 -2 -2 -1 ------- Run | Yrd Mat Min Exi Min Mat Fac Sto Gar Fac Fac Upp Upp Zhi Pro Fac Ext Cet Arc Hub Res Arm Lab Res DSF Acc Combat Hostiles Destroyed 54 | . . . . . . . . 7 . . 2 1 . . . 9 5 1 1 5 6 2 . . 15 Melee 3 | . . . . . . . . 1 . . . . . . . . . . . . 1 1 . . . Guns 2 | . . . . . . . . . . . . 1 . . . . . . 1 . . . . . . Cannons 12 | . . . . . . . . . . . 2 . . . . 2 . 1 . . 2 . . . 5 AOE 23 | . . . . . . . . 5 . . . . . . . 5 . . . 5 3 . . . 5 Classes Destroyed 15 | . . . . . . . . 2 1 1 2 . . . . 3 1 1 2 1 . . . . 1 Worker 3 | . . . . . . . . . . . . . . . . . . . 1 1 . . 1 . . Builder 1 | . . . . . . . . . . . . . . . . 1 . . . . . . . . . Tunneler 1 | . . . . . . . . . . . . . . . . . . . . . . . . . 1 Hauler 10 | . . . . . . . . . . 1 . . . . . . . . 3 6 . . . . . Recycler 5 | . . . . . . . . . 1 1 . . . . . . . . . 1 . . . . 2 Minesweeper 2 | . . . . . . . . . . . 1 1 . . . . . . . . . . . . . Mechanic 1 | . . . . . . . . . . . . . . . . . . . . 1 . . . . . Operator 4 | . . . . . . . . . . . . . . . . . . 3 . . 1 . . . . Watcher 9 | . . . . . . . . . . . . . . . . . 1 . . 1 3 . 1 . 3 Swarmer 17 | . . . . . . . . 4 . . . . . . . 5 . . . 5 . . . . 3 Grunt 12 | . . . . . . . . 3 . . . 1 . . . 1 . . 1 . 5 1 . . . Sentry 5 | . . . . . . . . . . . . . . . . 3 . 1 . . 1 . . . . Programmer 7 | . . . . . . . . . . . 2 . . . . . . . . . . . . . 5 Cetus Guard 5 | . . . . . . . . . . . . . . . . . 5 . . . . . . . . Enhanced Grunt 2 | . . . . . . . . . . . . . . . . . . . 2 . . . . . . Tracker 5 | . . . . . . . . . . . . . . . . . . . . . . . . . 5 Combat Programmer 2 | . . . . . . . . . . . . . . . . . . . . . . . . . 2 Packrat 1 | . . . . . . . . . . . 1 . . . . . . . . . . . . . . Savage 1 | . . . . . . . . . . . . . . . . 1 . . . . . . . . . Guerrilla 2 | . . . . . . . . . . . . . . . . . . . 2 . . . . . . Best Kill Streak 8 | . . . . . . . . 4 1 1 2 1 . . . 5 4 2 2 6 4 1 1 . 8 Combat Bots Only 6 | . . . . . . . . 4 . . 2 1 . . . 5 4 1 1 5 4 1 . . 6 Max Kills in Single Turn 4 | . . . . . . . . 3 1 1 1 1 . . . 4 1 1 3 2 1 1 1 . 2 Gunslinging . | . . . . . . . . . . . . . . . . . . . . . . . . . . Exploded 4 | . . . . . . . . 3 . . . . . . . 4 . . . 2 1 . . . 1 Melee 1 | . . . . . . . . 1 . . . . . . . . . . . . 1 1 . . . Uniques/NPCs Destroyed 1 | . . . . . . . . . . . . . . . . . . . . . . 1 . . . A5 (-3/Lab) Combat | -11 -10 -10 -10 -9 -8 -7 -7 -7 -6 -5 -5 -5 -5 -4 -4 -4 -4 -4 -4 -3 -3 -3 -2 -2 -1 -------- Run | Yrd Mat Min Exi Min Mat Fac Sto Gar Fac Fac Upp Upp Zhi Pro Fac Ext Cet Arc Hub Res Arm Lab Res DSF Acc Hostile Shots Fired 600 | . . 26 . . 6 . 49 92 2 3 10 10 . 7 12 25 30 . 2 11 30 41 4 3 237 Missed 216 | . . 10 . . 4 . 22 34 2 3 2 7 . 3 7 13 7 . . 2 16 21 2 . 61 Damage Taken 8896 | . . 154 . . 31 . 294 875 . 88 164 53 . 85 226 264 487 . 232 206 527 496 44 176 4494 Core 2795 | . . 154 . . 31 . 61 219 . 44 20 . . 20 9 35 91 . 36 . 107 19 . 13 1936 Absorbed by Shields 266 | . . . . . . . . . . . . . . . . 36 149 . . . 35 . . 46 . Reduced by Siege Mode 32 | . . . . . . . . 32 . . . . . . . . . . . . . . . . . Redirected to Shielding 234 | . . . . . . . . . . . . . . . . . . . . . . . . . 234 Regen/Repaired (Parts) 704 | . . . . . . . . . 49 47 . . . . . . . . . 157 168 . 4 46 233 Core Remaining (%) 83 | 100 . . . 38 94 . . 60 100 . . . . 91 . . . . 85 . . 82 . 99 . Volleys Fired 307 | . . . . . . . . 6 4 23 24 18 . 3 17 40 10 27 16 11 41 9 1 . 57 Largest 2 | . . . . . . . . 1 1 1 2 1 . 1 1 2 1 2 2 1 1 1 1 . 1 Hottest 168 | . . . . . . . . 60 90 98 168 30 . 60 98 168 60 105 168 98 120 100 100 . 120 Shots Fired 322 | . . . . . . . . 6 4 23 28 19 . 3 17 49 10 29 16 11 41 9 1 . 56 Gun 67 | . . . . . . . . . . . 20 19 . . 2 10 1 9 6 . . . . . . Cannon 203 | . . . . . . . . 3 4 23 8 . . 1 11 32 6 20 9 7 23 5 1 . 50 Launcher 32 | . . . . . . . . 3 . . . . . 2 . 6 3 . . 4 6 2 . . 6 Special 20 | . . . . . . . . . . . . . . . 4 1 . . 1 . 12 2 . . . Kinetic 91 | . . . . . . . . . . . 24 19 . . 2 17 1 16 7 . 5 . . . . Thermal 168 | . . . . . . . . . 4 23 4 . . . 11 23 . 13 9 7 18 5 1 . 50 Explosive 23 | . . . . . . . . 3 . . . . . . . 2 . . . 4 6 2 . . 6 Electromagnetic 21 | . . . . . . . . 3 . . . . . 3 . 6 9 . . . . . . . . Robot Hit Streak 17 | . . . . . . . . 2 . 6 7 2 . . 3 7 3 12 6 8 10 . . . 17 Robot Miss Streak 3 | . . . . . . . . . . . 2 2 . . 2 2 1 3 1 . 2 . . . 2 Penetration Max 1 | . . . . . . . . . . . . . . . . 1 . 1 1 . . . . . . Secondary Targets . | . . . . . . . . . . . . . . . . . . . . . . . . . . Shots Hit Robots 257 | . . . 4 . . 1 2 39 3 11 15 10 8 . 5 19 7 22 8 36 34 3 2 2 26 Core Hits 174 | . . . . . . . . 19 2 3 6 3 2 6 . 19 18 11 17 16 26 2 . 1 23 Critical Kills 7 | . . . . . . . . . . . . . . . . . . . 1 . . 1 . . 5 Critical Parts Destroyed 3 | . . . . . . . . . . . . 2 . . . . . . 1 . . . . . . Critical Strikes 20 | . . . . . . . . 2 . 1 . 2 . . . . 1 1 2 5 . 1 . . 5 Meltdown 6 | . . . . . . . . . . . . . . . . . . . . . . 1 . . 5 Destroy 5 | . . . . . . . . . . . . 2 . . . . 1 . 2 . . . . . . Blast 1 | . . . . . . . . . . . . . . . . . . 1 . . . . . . . Sever 8 | . . . . . . . . 2 . 1 . . . . . . . . . 5 . . . . . Melee Attacks 224 | . . . 4 . . 1 4 47 23 11 . 2 8 . 3 . . . 5 50 32 10 3 4 17 Impact . | . . . . . . . . . . . . . . . . . . . . . . . . . . Slashing 211 | . . . . . . . 4 47 23 11 . . 5 . . . . . 5 50 32 10 3 4 17 Piercing . | . . . . . . . . . . . . . . . . . . . . . . . . . . Sneak Attacks 36 | . . . 4 . . 1 . . 1 1 . 2 3 . 3 . . . 2 11 2 1 2 1 2 Combat Hostiles 6 | . . . . . . 1 . . . . . . . . 1 . . . . . 2 1 . 1 . Follow-up Attacks 15 | . . . . . . . . 4 . . . . . . . . . . . 7 4 . . . . Damage Inflicted 20073 | . . . . . . . 139 2963 175 452 565 237 371 188 . 1581 850 850 1192 3459 2927 299 236 253 3336 Guns 1235 | . . . . . . . . . . . 345 237 . . . 249 29 159 216 . . . . . . Cannons 3290 | . . . . . . . . . . 131 220 . . . . 461 31 691 78 39 234 67 . . 1338 Explosions 6819 | . . . . . . . . 399 . . . . . 188 . 871 790 . 664 958 1509 . . . 1440 Melee 8729 | . . . . . . . 139 2564 175 321 . . 371 . . . . . 234 2462 1184 232 236 253 558 Ramming . | . . . . . . . . . . . . . . . . . . . . . . . . . . Kinetic 2121 | . . . . . . . . . . . 480 237 . . . 476 29 490 259 . 150 . . . . Thermal 2373 | . . . . . . . . . . 131 85 . . . . 234 . 360 35 39 84 67 . . 1338 Explosive 4650 | . . . . . . . . 220 . . . . . . . 523 . . . 958 1509 . . . 1440 Electromagnetic 2200 | . . . . . . . . 179 . . . . . 188 . 348 821 . 664 . . . . . . Impact . | . . . . . . . . . . . . . . . . . . . . . . . . . . Slashing 8729 | . . . . . . . 139 2564 175 321 . . 371 . . . . . 234 2462 1184 232 236 253 558 Piercing . | . . . . . . . . . . . . . . . . . . . . . . . . . . Highest Corruption 24 | . . . . . . . . 4 . 1 1 1 1 3 . 3 19 19 20 . . 3 . . 24 Average Corruption 6 | . . . . . . . . 3 . 1 1 1 1 1 . 1 13 19 19 . . 2 . . 13 Corruption Purged . | . . . . . . . . . . . . . . . . . . . . . . . . . . Corruption Blocked 20 | . . . . . . . . . . . . . . . . . . . . . 20 . . . . Effects 85 | . . . . . . . . 6 . 3 . 4 2 4 . 5 7 14 15 . . 5 . . 20 Message Errors 22 | . . . . . . . . 3 . 1 . . 2 1 . 1 2 3 3 . . 2 . . 4 Matter Fused 15 | . . . . . . . . 2 . . . 2 . 1 . 1 1 3 . . . 2 . . 3 Heat Flow Errors 11 | . . . . . . . . 1 . . . 1 . 1 . . 1 2 4 . . . . . 1 Energy Discharges 7 | . . . . . . . . . . . . . . 1 . . . 1 3 . . 1 . . 1 Parts Rejected 3 | . . . . . . . . . . . . . . . . 1 . . 1 . . . . . 1 Parts Fused 1 | . . . . . . . . . . . . . . . . . . 1 . . . . . . . Data Loss (minor) 12 | . . . . . . . . . . 1 . . . . . . 2 . 1 . . . . . 8 Data Loss (major) 4 | . . . . . . . . . . 1 . . . . . 1 . . 1 . . . . . 1 Misfires 1 | . . . . . . . . . . . . 1 . . . . . . . . . . . . . Alerts 3 | . . . . . . . . . . . . . . . . 1 1 1 . . . . . . . Misdirections 1 | . . . . . . . . . . . . . . . . . . . 1 . . . . . . Weapon Failures 5 | . . . . . . . . . . . . . . . . . . 3 1 . . . . . 1 Overload Shots . | . . . . . . . . . . . . . . . . . . . . . . . . . . Overflow Damage 1099 | . . . . . . . 117 41 68 3 17 . 114 . . 44 . . 10 252 58 . 141 46 188 Projectiles 58 | . . . . . . . . . . 3 17 . . . . 3 . . . . . . . . 35 Explosions 205 | . . . . . . . . . . . . . . . . 41 . . 10 57 . . . . 97 Melee 836 | . . . . . . . 117 41 68 . . . 114 . . . . . . 195 58 . 141 46 56 Knockbacks 3 | . . . . . . . . . . . 1 . . . . . . . 1 . 1 . . . . Impact . | . . . . . . . . . . . . . . . . . . . . . . . . . . Kinetic 3 | . . . . . . . . . . . 1 . . . . . . . 1 . 1 . . . . Secondary . | . . . . . . . . . . . . . . . . . . . . . . . . . . Self-Inflicted Damage 521 | . . . . . . . . 29 . . . . . . . . . . 153 . . . . . 339 Shots 7 | . . . . . . . . 1 . . . . . . . . . . 2 . . . . . 4 Rammed . | . . . . . . . . . . . . . . . . . . . . . . . . . . Targets Rammed . | . . . . . . . . . . . . . . . . . . . . . . . . . . Kicked . | . . . . . . . . . . . . . . . . . . . . . . . . . . Crushed . | . . . . . . . . . . . . . . . . . . . . . . . . . . Highest Temperature 432 | . . . . . . . 5 141 114 252 432 233 . 243 9 333 275 349 230 74 49 18 345 77 197 Average Temperature 85 | . . . . . . . 5 38 49 58 221 122 . 128 6 116 80 109 64 42 12 7 140 25 78 Received Heat Transfer 816 | . . 30 . . 9 . 120 435 . . . 9 . . 12 29 22 . 21 9 84 18 18 . . Effects 3 | . . . . . . . . . . . 1 . . . . . 1 . . . . . 1 . . Energy Bleed 2 | . . . . . . . . . . . . . . . . . 1 . . . . . 1 . . Short Circuit 1 | . . . . . . . . . . . 1 . . . . . . . . . . . . . . Siege Activations 1 | . . . . . . . . 1 . . . . . . . . . . . . . . . . . Total Turns 28 | . . . . . . . . 28 . . . . . . . . . . . . . . . . . Longest Duration 28 | . . . . . . . . 28 . . . . . . . . . . . . . . . . . Robots Corrupted 11 | . . . . . . . . 1 . . . . . . . 2 6 . 2 . . . . . . Combat Hostiles 8 | . . . . . . . . 1 . . . . . . . 2 5 . . . . . . . . Parts Fried 12 | . . . . . . . . 1 . . . . . . . 1 5 . 5 . . . . . . Impact Corruptions . | . . . . . . . . . . . . . . . . . . . . . . . . . . Robots Melted 6 | . . . . . . . . . . . . . . . . . . . . . . 1 . . 5 Combat Hostiles 6 | . . . . . . . . . . . . . . . . . . . . . . 1 . . 5 Parts Melted 16 | . . . . . . . . . . . . . . . . . . 2 . . . 4 . . 10 Heat Transferred 2323 | . . . . . . . . . . 200 100 . . . . 350 . 550 50 . 74 37 . . 962 Parts Sabotaged . | . . . . . . . . . . . . . . . . . . . . . . . . . . Parts Stolen . | . . . . . . . . . . . . . . . . . . . . . . . . . . Parts Stripped . | . . . . . . . . . . . . . . . . . . . . . . . . . . Power Chain Reactions 3 | . . . . . . . . . . . . . . . . 1 . . . . 2 . . . . Latent Energy Used 701 | . . . . . . . . 202 . . . . . 70 . 149 280 . . . . . . . . LE Corruption 16 | . . . . . . . . 4 . . . . . 2 . 3 7 . . . . . . . . Alert | -11 -10 -10 -10 -9 -8 -7 -7 -7 -6 -5 -5 -5 -5 -4 -4 -4 -4 -4 -4 -3 -3 -3 -2 -2 -1 ------- Run | Yrd Mat Min Exi Min Mat Fac Sto Gar Fac Fac Upp Upp Zhi Pro Fac Ext Cet Arc Hub Res Arm Lab Res DSF Acc Peak Influence 1052 | . 27 187 . . 64 28 141 849 478 271 . . . . 191 493 628 491 1052 600 278 . 210 165 697 Initial 485 | . . 10 . . . 28 12 91 445 61 . . . . 15 51 276 251 171 485 17 . . 157 98 Average 241 | . 16 88 . . 21 28 32 621 220 106 . . . . 103 170 511 442 472 278 100 . 127 161 322 Maximum Alert Level 3 | . . . . . . . . 3 2 1 . . . . . 2 2 2 3 2 1 . 1 . 2 Low Security (%) 61 | 100 100 100 . 100 100 100 100 4 63 86 . . . . 100 72 . . 17 54 92 . 92 100 28 Level 1 13 | . . . . . . . . 19 4 13 . . . . . 13 11 19 35 8 7 . 7 . 44 Level 2 18 | . . . . . . . . 13 32 . . . . . . 14 88 80 28 36 . . . . 26 Level 3 6 | . . . . . . . . 62 . . . . . . . . . . 17 . . . . . . Level 4 . | . . . . . . . . . . . . . . . . . . . . . . . . . . Level 5 . | . . . . . . . . . . . . . . . . . . . . . . . . . . High Security . | . . . . . . . . . . . . . . . . . . . . . . . . . . Max Security . | . . . . . . . . . . . . . . . . . . . . . . . . . . Squads Dispatched 79 | . . . . . 2 . 1 . 9 12 . . . . 3 3 . . 4 14 10 . 5 1 15 Investigation 33 | . . . . . 1 . 1 . 8 6 . . . . 2 2 . . 1 5 4 . 3 . . Extermination 10 | . . . . . . . . . 1 2 . . . . . . . . 1 . 3 . . . 3 Reinforcement 24 | . . . . . 1 . . . . 3 . . . . 1 1 . . 1 9 3 . 1 1 3 Assault 1 | . . . . . . . . . . . . . . . . . . . . . . . . . 1 Garrison 2 | . . . . . . . . . . 1 . . . . . . . . 1 . . . . . . Intercept 9 | . . . . . . . . . . . . . . . . . . . . . . . 1 . 8 Searches Triggered 1 | . . . . . . . . . 1 . . . . . . . . . . . . . . . . Construction Impeded 1 | . . . . . . . . . . . . . . . . 1 . . . . . . . . . Haulers Reinforced 7 | . . . . . . . . . . 1 . . . . . . . . 1 5 . . . . . Active Scanning Responses . | . . . . . . . . . . . . . . . . . . . . . . . . . . Cargo Convoy Interrupts . | . . . . . . . . . . . . . . . . . . . . . . . . . . Stealth | -11 -10 -10 -10 -9 -8 -7 -7 -7 -6 -5 -5 -5 -5 -4 -4 -4 -4 -4 -4 -3 -3 -3 -2 -2 -1 --------- Run | Yrd Mat Min Exi Min Mat Fac Sto Gar Fac Fac Upp Upp Zhi Pro Fac Ext Cet Arc Hub Res Arm Lab Res DSF Acc Distress Signals 18 | . . . . . . . . . 1 1 . . . . 1 1 2 . 1 9 . . . . 2 Communications Jammed 61 | . . . . . . . . . 11 . . . . . 38 1 . . . . 10 . . 1 . Distress Signals 59 | . . . . . . . . . 11 . . . . . 38 1 . . . . 9 . . . . Times Spotted 307 | . 2 12 . . 11 . 20 34 15 9 2 8 . 12 14 18 10 13 9 10 30 7 4 6 61 Peak Tracking Total 17 | . 2 5 . . 12 . 11 9 5 6 2 4 . 6 6 5 5 1 3 3 6 3 5 4 17 Tactical Retreats 49 | . . 1 . . . . 3 9 3 3 . 5 . 4 2 1 . . 1 3 3 2 . . 9 Traps | -11 -10 -10 -10 -9 -8 -7 -7 -7 -6 -5 -5 -5 -5 -4 -4 -4 -4 -4 -4 -3 -3 -3 -2 -2 -1 ------- Run | Yrd Mat Min Exi Min Mat Fac Sto Gar Fac Fac Upp Upp Zhi Pro Fac Ext Cet Arc Hub Res Arm Lab Res DSF Acc Traps Triggered 11 | . . . . . . . 1 . . 1 . . . . 1 2 . . . . 2 . . 3 1 Indirectly . | . . . . . . . . . . . . . . . . . . . . . . . . . . Trap Hack Attempts . | . . . . . . . . . . . . . . . . . . . . . . . . . . Triggered . | . . . . . . . . . . . . . . . . . . . . . . . . . . Disarmed . | . . . . . . . . . . . . . . . . . . . . . . . . . . Reprogrammed . | . . . . . . . . . . . . . . . . . . . . . . . . . . Reused 4 | . . . . . . . . . . . . 2 . . . . . . . . . 2 . . . Traps Extracted 3 | . . . . . . . . . . . . 3 . . . . . . . . . . . . . Installed 5 | . . . . . . . . . . . . 3 . . . . . . . . . 2 . . . Triggered 5 | . . . . . . . . . . . . 3 . . . . . . . . . 2 . . . Most Traps Carried 12 | . . . . . . . . . . . 3 12 6 6 6 6 6 6 6 6 6 6 4 4 4 Machines | -11 -10 -10 -10 -9 -8 -7 -7 -7 -6 -5 -5 -5 -5 -4 -4 -4 -4 -4 -4 -3 -3 -3 -2 -2 -1 ---------- Run | Yrd Mat Min Exi Min Mat Fac Sto Gar Fac Fac Upp Upp Zhi Pro Fac Ext Cet Arc Hub Res Arm Lab Res DSF Acc Machines Disabled 23 | . . . . . . . . . . . . . . . 1 3 . 3 7 . 3 4 . . 2 Max in Single Turn 6 | . . . . . . . . . . . . . . . 1 1 . 1 6 . 1 1 . . 1 Garrison Access 6 | . . . . . . 1 . . 1 . . . . . . . . . . 3 . . 1 . . Network Hub 2 | . . . . . . . . . . . . . . . . . . . 2 . . . . . . Energy Cycler 1 | . . . . . . . . . . . . . . . . . . . . . . . . . 1 Machines Repaired . | . . . . . . . . . . . . . . . . . . . . . . . . . . Machines Dismantled . | . . . . . . . . . . . . . . . . . . . . . . . . . . Machines Sabotaged . | . . . . . . . . . . . . . . . . . . . . . . . . . . Overloaded Fab Kills 2 | . . . . . . . . . . . . . . . . . . . . . 2 . . . . Hacking | -11 -10 -10 -10 -9 -8 -7 -7 -7 -6 -5 -5 -5 -5 -4 -4 -4 -4 -4 -4 -3 -3 -3 -2 -2 -1 --------- Run | Yrd Mat Min Exi Min Mat Fac Sto Gar Fac Fac Upp Upp Zhi Pro Fac Ext Cet Arc Hub Res Arm Lab Res DSF Acc Machines Accessed 114 | . 3 . 2 . 3 1 5 2 15 14 . . 5 1 6 9 1 . 3 17 12 2 7 . 6 Terminals 73 | . 3 . . . 3 . 4 2 9 7 . . . 1 4 9 1 . 3 10 6 . 5 . 6 Fabricators 15 | . . . . . . . . . 2 3 . . . . 2 . . . . 2 5 . 1 . . Repair Stations 6 | . . . . . . . . . 2 2 . . . . . . . . . 1 1 . . . . Recycling Units 2 | . . . . . . . . . . 1 . . . . . . . . . 1 . . . . . Scanalyzers 2 | . . . . . . . . . . 1 . . . . . . . . . 1 . . . . . Garrison Access 7 | . . . . . . 1 1 . 2 . . . . . . . . . . 2 . . 1 . . Total Hacks 401 | . 8 . 5 . 5 3 11 4 44 35 . . 18 1 20 15 1 . 16 82 65 5 40 . 23 Successful 218 | . 3 . 5 . 3 1 3 2 15 20 . . 18 1 8 9 1 . 10 44 39 5 17 . 14 Failed 183 | . 5 . . . 2 2 8 2 29 15 . . . . 12 6 . . 6 38 26 . 23 . 9 Catastrophic 24 | . . . . . 1 . 3 . 4 2 . . . . 2 1 . . 3 4 4 . . . . Database Lockouts . | . . . . . . . . . . . . . . . . . . . . . . . . . . Manual 99 | . 2 . 1 . 1 . . . 8 15 . . . . 8 4 1 . 7 27 21 1 2 . 1 Terminals 288 | . 8 . . . 5 . 10 4 29 22 . . . 1 13 15 1 . 16 61 44 . 36 . 23 Fabricators 42 | . . . . . . . . . 6 7 . . . . 7 . . . . 5 14 . 3 . . Repair Stations 21 | . . . . . . . . . 3 4 . . . . . . . . . 7 7 . . . . Recycling Units 4 | . . . . . . . . . . 1 . . . . . . . . . 3 . . . . . Scanalyzers 5 | . . . . . . . . . . 1 . . . . . . . . . 4 . . . . . Garrison Access 13 | . . . . . . 3 1 . 6 . . . . . . . . . . 2 . . 1 . . Terminal Hacks 155 | . 3 . 5 . 3 . 2 2 5 10 . . 18 1 4 9 1 . 9 27 23 5 14 . 14 Record 25 | . . . 4 . . . . . 1 . . . 6 1 . . . . . . 4 4 2 . 3 Part Schematic 9 | . . . . . . . . . . 1 . . 4 . 1 . . . . 2 . . 1 . . Robot Analysis 12 | . . . . . 1 . . . . 2 . . 4 . . . . . 1 2 . . . . 2 Prototype ID Bank 10 | . . . . . 1 . . . . . . . 4 . 1 . . . . 1 2 . 1 . . Open Door 14 | . . . . . . . 2 1 . . . . . . . 7 1 . . . . . . . 3 Open DSF 2 | . . . . . . . . . 1 . . . . . . . . . . . . . 1 . . Level Access Points 5 | . . . . . . . . . . 1 . . . . . . . . 1 . 1 . 1 . 1 Branch Access Points 5 | . 1 . . . 1 . . . . 1 . . . . 1 . . . . 1 . . . . . Emergency Access Points 3 | . . . . . . . . . . . . . . . . . . . . 1 2 . . . . Machine Index 3 | . . . . . . . . . . . . . . . . . . . 1 1 1 . . . . Terminal Index 2 | . . . . . . . . . . . . . . . . . . . . . 1 . 1 . . Repair Station Index 1 | . . . . . . . . . . . . . . . . . . . . . . . 1 . . Scanalyzer Index 1 | . . . . . . . . . . . . . . . . . . . . . . . 1 . . Garrison Index 2 | . . . . . . . . . . . . . . . . . . . . . . . 1 . 1 Alert Level 8 | . . . . . . . . . 1 1 . . . . . . . . 2 3 . . 1 . . Unreport Threat 12 | . . . . . . . . . 1 . . . . . . . . . 1 4 4 . . . 2 Locate Traps 10 | . 1 . . . . . . . . . . . . . . 1 . . 2 3 2 . 1 . . Dispatch Records 1 | . . . . . . . . . . . . . . . . . . . . 1 . . . . . Security Status 1 | . . . . . . . . . . . . . . . . . . . . . 1 . . . . Surveillance Status 1 | . . . . . . . . . . . . . . . . . . . . . 1 . . . . Transport Status 3 | . . . . . . . . . . . . . . . . . . . . 3 . . . . . Recall Investigation 2 | . . . . . . . . . . 1 . . . . . 1 . . . . . . . . . Recall Extermination 3 | . . . . . . . . . . 2 . . . . . . . . . . 1 . . . . Hauler Manifests 7 | . . . . . . . . . . . . . . . 1 . . . 1 1 1 . 1 . 2 Registered Components 1 | . . . . . . . . . . . . . . . . . . . . 1 . . . . . Registered Prototypes 2 | . . . . . . . . . . . . . . . . . . . . 1 . . 1 . . Zone Layout 7 | . 1 . . . . . . . 1 1 . . . . . . . . . 2 2 . . . . Garrison Registry 1 | . . . . . . . . 1 . . . . . . . . . . . . . . . . . Derelict Proto ID Bank 1 | . . . 1 . . . . . . . . . . . . . . . . . . . . . . Release Object 1 | . . . . . . . . . . . . . . . . . . . . . . 1 . . . Fabricator Hacks 22 | . . . . . . . . . 2 4 . . . . 3 . . . . 3 8 . 2 . . Network Status 5 | . . . . . . . . . 1 1 . . . . 1 . . . . 1 1 . . . . Load Schematic 7 | . . . . . . . . . . 1 . . . . 1 . . . . 1 3 . 1 . . Build 10 | . . . . . . . . . 1 2 . . . . 1 . . . . 1 4 . 1 . . Repair Station Hacks 13 | . . . . . . . . . 2 2 . . . . . . . . . 4 5 . . . . Scan Component 7 | . . . . . . . . . 1 1 . . . . . . . . . 2 3 . . . . Repair 6 | . . . . . . . . . 1 1 . . . . . . . . . 2 2 . . . . Recycling Unit Hacks 3 | . . . . . . . . . . 1 . . . . . . . . . 2 . . . . . Retrieve Matter 1 | . . . . . . . . . . . . . . . . . . . . 1 . . . . . Retrieve Components 2 | . . . . . . . . . . 1 . . . . . . . . . 1 . . . . . Scanalyzer 3 | . . . . . . . . . . . . . . . . . . . . 3 . . . . . Insert Component 1 | . . . . . . . . . . . . . . . . . . . . 1 . . . . . Analyze 2 | . . . . . . . . . . . . . . . . . . . . 2 . . . . . Garrison Access Hacks 6 | . . . . . . 1 1 . 1 . . . . . . . . . . 2 . . 1 . . Unlock Access 1 | . . . . . . . 1 . . . . . . . . . . . . . . . . . . Seal Access 5 | . . . . . . 1 . . 1 . . . . . . . . . . 2 . . 1 . . Unauthorized Hacks 16 | . . . . . . . . . 5 3 . . . . 1 . . . 1 3 3 . . . . Terminals 9 | . . . . . . . . . 3 . . . . . 1 . . . 1 2 2 . . . . Assimilate 5 | . . . . . . . . . 3 . . . . . 1 . . . 1 . . . . . . Botnet 4 | . . . . . . . . . . . . . . . . . . . . 2 2 . . . . Fabricators 4 | . . . . . . . . . 1 2 . . . . . . . . . . 1 . . . . Fabnet 3 | . . . . . . . . . 1 2 . . . . . . . . . . . . . . . Overload 1 | . . . . . . . . . . . . . . . . . . . . . 1 . . . . Repair Stations 1 | . . . . . . . . . 1 . . . . . . . . . . . . . . . . Mechanics 1 | . . . . . . . . . 1 . . . . . . . . . . . . . . . . Recycling Units 1 | . . . . . . . . . . . . . . . . . . . . 1 . . . . . Tunnel 1 | . . . . . . . . . . . . . . . . . . . . 1 . . . . . Scanalyzers 1 | . . . . . . . . . . 1 . . . . . . . . . . . . . . . Extract 1 | . . . . . . . . . . 1 . . . . . . . . . . . . . . . Garrison Access . | . . . . . . . . . . . . . . . . . . . . . . . . . . Data Cores Recovered 2 | . . . . . . . . . . . . . . . . . . . 1 . 1 . . . . Used 1 | . . . . . . . . . . . . . . . . . . . . . 1 . . . . Hacking Detections 77 | . 3 . . . 2 . 3 1 15 12 . . . . 6 5 . . 3 10 9 . 4 . 4 Full Trace Events 28 | . 1 . . . 1 . 1 . 8 5 . . . . 2 1 . . 1 3 2 . 3 . . Feedback Events 1 | . . . . . . . . . . 1 . . . . . . . . . . . . . . . Corruption 1 | . . . . . . . . . . 1 . . . . . . . . . . . . . . . Feedback Blocked 1 | . . . . . . . . . . . . . . . . . . . . . . . 1 . . Robot Schematics Acquired . | . . . . . . . . . . . . . . . . . . . . . . . . . . Robots Built 6 | . . . . . . . . . . . . . . . 3 . . . . . 3 . . . . Authchips . | . . . . . . . . . . . . . . . . . . . . . . . . . . Time 186 | . . . . . . . . . . . . . . . 93 . . . . . 93 . . . . Total Robot Build Rating 42 | . . . . . . . . . . . . . . . 21 . . . . . 21 . . . . Part Schematics Acquired 11 | . . . . . . . . . . 2 . . 4 . 1 . . . . 3 . . 1 . . Parts Built 10 | . . . . . . . . . 2 3 . . . . . . . . . 1 3 . 1 . . Authchips 1 | . . . . . . . . . . . . . . . . . . . . . 1 . . . . Time 777 | . . . . . . . . . 53 202 . . . . . . . . . 68 380 . 74 . . Total Part Build Rating 79 | . . . . . . . . . 12 25 . . . . . . . . . 8 25 . 9 . . Parts Repaired 6 | . . . . . . . . . 1 1 . . . . . . . . . 2 2 . . . . Time 273 | . . . . . . . . . 70 60 . . . . . . . . . 62 81 . . . . Parts Recycled . | . . . . . . . . . . . . . . . . . . . . . . . . . . Recycled Matter . | . . . . . . . . . . . . . . . . . . . . . . . . . . Retrieved Matter 81 | . . . . . . . . . . . . . . . . . . . . 81 . . . . . Retrieved Components 9 | . . . . . . . . . . . . . . . . . . . . 9 . . . . . Parts Scanalyzed 1 | . . . . . . . . . . . . . . . . . . . . 1 . . . . . Part Schematics Acquired 1 | . . . . . . . . . . . . . . . . . . . . 1 . . . . . Parts Damaged . | . . . . . . . . . . . . . . . . . . . . . . . . . . Bothacking | -11 -10 -10 -10 -9 -8 -7 -7 -7 -6 -5 -5 -5 -5 -4 -4 -4 -4 -4 -4 -3 -3 -3 -2 -2 -1 ------------ Run | Yrd Mat Min Exi Min Mat Fac Sto Gar Fac Fac Upp Upp Zhi Pro Fac Ext Cet Arc Hub Res Arm Lab Res DSF Acc Used RIF Installer . | . . . . . . . . . . . . . . . . . . . . . . . . . . Robots Hacked 21 | . . . 3 . . . . . . . . 1 3 1 4 1 . . 1 2 3 2 . . . Non-combat 7 | . . . 2 . . . . . . . . 1 . . 3 1 . . . . . . . . . Combat 14 | . . . 1 . . . . . . . . . 3 1 1 . . . 1 2 3 2 . . . Robot Hacks Applied 18 | . . . 4 . . . . . . . . 2 3 . 4 1 . . . . 2 2 . . . parse_system 14 | . . . 4 . . . . . . . . 1 3 . 1 1 . . . . 2 2 . . . no_distress 1 | . . . . . . . . . . . . 1 . . . . . . . . . . . . . find_chute 2 | . . . . . . . . . . . . . . . 2 . . . . . . . . . . check_alert 1 | . . . . . . . . . . . . . . . 1 . . . . . . . . . . Relay Couplers Released . | . . . . . . . . . . . . . . . . . . . . . . . . . . Fabnet Peak Effective % 7 | . . . . . . . . . . 3 3 3 3 7 7 7 7 7 7 2 2 2 . . . Autooverrided 7 | . . . . . . . . . . . . . . 1 1 . . . 1 2 2 . . . . Robots Rewired 16 | . . . . . . 1 . . . . . . . . 1 7 . . . . 7 . . . . Allies Hacked . | . . . . . . . . . . . . . . . . . . . . . . . . . . Hacks Repelled . | . . . . . . . . . . . . . . . . . . . . . . . . . . Allies | -11 -10 -10 -10 -9 -8 -7 -7 -7 -6 -5 -5 -5 -5 -4 -4 -4 -4 -4 -4 -3 -3 -3 -2 -2 -1 -------- Run | Yrd Mat Min Exi Min Mat Fac Sto Gar Fac Fac Upp Upp Zhi Pro Fac Ext Cet Arc Hub Res Arm Lab Res DSF Acc Total Allies 60 | . . 2 . 1 . 1 2 . 1 . . . . 1 6 19 5 . 1 2 12 . . . 7 Largest Group 12 | . . 2 . 1 . 1 3 . 1 . . . . 1 6 11 12 12 10 1 7 . . . 7 Highest-Rated Group 895 | . . 45 . 31 . 40 102 . 26 . . . . 54 233 563 895 895 690 30 383 . . . 102 Highest-Rated Ally 159 | . . 31 . 31 . 40 40 . 26 . . . . 54 49 159 159 159 96 30 65 . . . 15 Total Orders 25 | . . . . . . . . . . . . . . . 7 5 3 5 2 . 3 . . . . STAY 13 | . . . . . . . . . . . . . . . 3 3 2 3 1 . 1 . . . . FOLLOW 10 | . . . . . . . . . . . . . . . 3 2 1 2 1 . 1 . . . . GUARD 2 | . . . . . . . . . . . . . . . 1 . . . . . 1 . . . . Ally Attacks 258 | . . 8 . . . . 15 . . . . . . 1 21 66 39 16 44 7 28 . . . 13 Total Damage 6985 | . . 128 . . . . 193 . . . . . . 23 561 1719 1021 430 1395 67 1044 . . . 404 Kills 39 | . . 5 . . . . 1 . . . . . . . 2 11 5 3 9 . . . . . 3 Allies Corrupted 6 | . . . . . . . . . . . . . . . 2 . . . 2 . 1 . . . 1 Allies Melted . | . . . . . . . . . . . . . . . . . . . . . . . . . . Intel | -11 -10 -10 -10 -9 -8 -7 -7 -7 -6 -5 -5 -5 -5 -4 -4 -4 -4 -4 -4 -3 -3 -3 -2 -2 -1 ------- Run | Yrd Mat Min Exi Min Mat Fac Sto Gar Fac Fac Upp Upp Zhi Pro Fac Ext Cet Arc Hub Res Arm Lab Res DSF Acc Robot Analysis Total 12 | . . . . . 1 . . . . 2 . . 4 . . . . . 1 2 . . . . 2 Derelict Logs Recovered 7 | . . . . . . . . . . . 2 3 . 2 . . . . . . . . . . . Drone Launches . | . . . . . . . . . . . . . . . . . . . . . . . . . . Drone Recoveries . | . . . . . . . . . . . . . . . . . . . . . . . . . . Exploration | -11 -10 -10 -10 -9 -8 -7 -7 -7 -6 -5 -5 -5 -5 -4 -4 -4 -4 -4 -4 -3 -3 -3 -2 -2 -1 ------------- Run | Yrd Mat Min Exi Min Mat Fac Sto Gar Fac Fac Upp Upp Zhi Pro Fac Ext Cet Arc Hub Res Arm Lab Res DSF Acc Turns Passed 10496 | 9 81 43 175 78 46 64 161 798 1092 1076 379 594 115 278 485 899 251 213 278 876 1017 330 236 103 819 Spaces Moved 16992 | 18 156 86 286 102 116 144 336 649 1632 1551 803 971 225 461 846 1037 168 127 391 2082 1661 448 904 282 1510 Core 815 | 18 156 86 286 102 23 . . 1 . . . . . . . . . . . . . . . . 143 Treads 112 | . . . . . . . . 112 . . . . . . . . . . . . . . . . . Legs . | . . . . . . . . . . . . . . . . . . . . . . . . . . Wheels . | . . . . . . . . . . . . . . . . . . . . . . . . . . Hover . | . . . . . . . . . . . . . . . . . . . . . . . . . . Flight 16065 | . . . . . 93 144 336 536 1632 1551 803 971 225 461 846 1037 168 127 391 2082 1661 448 904 282 1367 Fastest Speed 5 | 50 50 50 50 50 35 34 24 23 14 18 26 26 26 31 19 27 27 32 32 6 5 14 11 11 11 Average Speed 29 | 50 50 50 50 50 37 34 32 53 27 22 31 39 32 31 27 44 79 78 46 23 15 28 11 11 23 Slowest Speed 700 | 50 50 50 50 50 50 35 97 250 92 26 97 97 97 107 101 101 101 101 112 30 17 85 82 11 700 Overloaded Moves 23 | . . . . . . . . . 6 10 . . . . 5 . . . . 1 1 . . . . Propulsion Burnouts . | . . . . . . . . . . . . . . . . . . . . . . . . . . Robots Hopped 46 | . . . . . . . 1 7 10 7 . . . . 6 1 . . 1 3 . 2 1 . 7 Cave-ins Triggered 2 | . . . . . . . . . . . . . . . . . . . . . . . . . 2 Teleports 2 | . . . . . . . . . . . . . . . . . . . . . . 1 . . 1 Exploration Rate (%) 52 | 3 44 37 61 32 19 5 62 60 34 36 92 88 63 69 18 68 84 82 30 66 56 100 21 97 26 Regions Visited 25 Branch Regions 14 Pre-discovered Areas 5 | . . . 1 . . . . . . . . . 3 . . . . . . 1 . . . . . Known Exits Taken 10 | . 1 . . . . . 1 . . 1 1 . . 1 1 . . . 1 1 . 1 1 . . Unknown Exits Taken 13 | 1 . 1 1 1 1 1 . . 1 . . 1 1 . . 1 1 1 . . 1 . . . . Scrap Searched 9 | . . . . 1 . . . . . . 4 2 . 2 . . . . . . . . . . . Spaces Dug 199 | . . . . . . . 2 . 23 12 . 1 . . 7 16 . . 8 7 44 . 2 1 76 Terrain Destroyed 769 | . . . . . . . 2 14 24 23 19 18 . . 14 54 . 5 302 47 112 9 2 1 123 Melee 55 | . . . . . . . 2 . 20 4 . . . . . . . . 2 7 10 . 1 1 8 Projectile 156 | . . . . . . . . . 4 19 19 18 . . 14 25 . 5 7 6 17 . 1 . 21 AOE 558 | . . . . . . . . 14 . . . . . . . 29 . . 293 34 85 9 . . 94 Terrain Rammed . | . . . . . . . . . . . . . . . . . . . . . . . . . . Walls Destroyed . | . . . . . . . . . . . . . . . . . . . . . . . . . . Machines Disabled . | . . . . . . . . . . . . . . . . . . . . . . . . . . Actions | -11 -10 -10 -10 -9 -8 -7 -7 -7 -6 -5 -5 -5 -5 -4 -4 -4 -4 -4 -4 -3 -3 -3 -2 -2 -1 --------- Run | Yrd Mat Min Exi Min Mat Fac Sto Gar Fac Fac Upp Upp Zhi Pro Fac Ext Cet Arc Hub Res Arm Lab Res DSF Acc Total 21788 | 17 158 85 315 128 116 156 377 1023 2237 2238 897 1160 260 586 1083 1418 269 205 459 2388 2339 621 1028 347 1878 Wait 3657 | . . . 24 25 . . 28 310 531 581 55 159 2 114 192 292 73 34 21 183 556 109 100 11 257 Move 16876 | 17 155 85 285 101 115 143 334 633 1611 1537 802 970 224 460 834 1033 167 126 388 2075 1660 443 901 281 1496 Hop 42 | . . . . . . . 1 6 10 6 . . . . 5 1 . . 1 3 . 2 1 . 6 Pick Up 88 | . 3 . 1 2 . 3 3 1 15 15 3 2 5 1 4 1 3 2 2 8 6 3 1 . 4 Fast Attach 126 | . . . . . 1 4 5 3 5 10 . . 7 . 4 2 1 3 7 22 5 17 7 12 11 Attach 82 | . . . 1 . . 2 1 10 7 14 4 . 2 1 11 4 . 1 1 3 3 2 2 . 13 Detach 53 | . . . . . . 2 . 8 4 12 2 . . . 8 3 . . 1 5 . 2 1 . 5 Swap 128 | . . . . . . . . 2 11 8 5 4 1 5 2 15 9 7 7 15 19 6 5 . 7 Drop 147 | . . . . . . 1 1 1 16 21 2 2 11 2 3 1 4 5 10 22 7 16 6 12 4 Fire 307 | . . . . . . . . 6 4 23 24 18 . 3 17 40 10 27 16 11 41 9 1 . 57 Melee 205 | . . . 4 . . 1 4 43 23 11 . 2 8 . 3 . . . 5 41 26 10 3 4 17 Ram . | . . . . . . . . . . . . . . . . . . . . . . . . . . Kick . | . . . . . . . . . . . . . . . . . . . . . . . . . . Crush . | . . . . . . . . . . . . . . . . . . . . . . . . . . Escape Stasis 58 | . . . . . . . . . . . . . . . . 14 . . . . 16 . . 27 1 Rewire 12 | . . . . . . . . . . . . . . . . 12 . . . . . . . . . Trap 5 | . . . . . . . . . . . . 3 . . . . . . . . . 2 . . . Miscellaneous 2 | . . . . . . . . . . . . . . . . . 2 . . . . . . . . Route ------- -11/Scrapyard -10/Materials (discovered 3 exits: [*Mat] / *Min x2) -10/Mines -10/Exiles -9/Mines -8/Materials -7/Factory -7/Storage -7/Garrison (discovered 3 exits: *Fac x3) -6/Factory -5/Factory (discovered 6 exits: Fac x4 / *Upp x2) -5/Upper Caves -5/Upper Caves (discovered 2 exits: *Fac / *Zhi) -5/Zhirov -4/Proximity Caves -4/Factory (discovered 6 exits: *Res x2 / Upp x2 / *Ext x2) -4/Extension (discovered 2 exits: *Res / *Cet) -4/Cetus (discovered 2 exits: *Res / *Arc) -4/Archives (discovered 3 exits: *Res / *Hub x2) -4/Hub_04(d) (discovered 4 exits: *Res x4) -3/Research (discovered 4 exits: *Res / *Arm / *Qua x2) -3/Armory (discovered 3 exits: Res x2 / *Lab) -3/Lab -2/Research (discovered 4 exits: *Acc x3 / DSF) -2/DSF -1/Access (discovered 2 exits: Sur / [*Com]) History --------- Turn | Location | Event 4 | -11/Scrapyard | Discovered new exit (range 14) 10 | -11/Scrapyard | Entered Materials 51 | -10/Materials | Discovered new exit (range 16) 66 | -10/Materials | Identified exit to Mines 91 | -10/Materials | Entered Mines 126 | -10/Mines | Core integrity fell below 50% 132 | -10/Mines | Deemed a non-threat by the Exiles lab entrance 132 | -10/Mines | Discovered new exit (range 5) 134 | -10/Mines | Entered Exiles 147 | -10/Exiles | Met 8R-AWN 155 | -10/Exiles | Met EX-HEX 169 | -10/Exiles | Met EX-BIN 175 | -10/Exiles | Aligned with FarCom system 176 | -10/Exiles | Given EX-Vault access code 188 | -10/Exiles | Opened EX-Vault 191 | -10/Exiles | Found Latent Energy Streamer 203 | -10/Exiles | Warned to stay clear of 0b10 Research branches 210 | -10/Exiles | Exiles lab attacked by MAIN.C 258 | -10/Exiles | Learned location of Zion (-6) 286 | -10/Exiles | Discovered new exit (range 10) 303 | -10/Exiles | Build established: Mutant 309 | -10/Exiles | Left Exiles lab with Latent Energy Streamer 309 | -10/Exiles | Entered Mines 338 | -9/Mines | Received a Mining Laser from a helpful Derelict 372 | -9/Mines | Discovered new exit (range 9) 387 | -9/Mines | Entered Materials 387 | -8/Materials | Evolved 4 slots: Propulsion x2, Utility x2 430 | -8/Materials | Discovered new exit (range 10) 433 | -8/Materials | Entered Factory 433 | -7/Factory | Evolved 2 slots: Propulsion x1, Utility x1 472 | -7/Factory | Discovered new exit (range 12) 497 | -7/Factory | Entered Storage 497 | -7/Storage | Accompanied by 1 ally 554 | -7/Storage | Met a pair of Derelict thieves 658 | -7/Storage | Identified exit to Garrison 658 | -7/Storage | Entered Garrison 674 | -7/Garrison | Triggered checkpoint 676 | -7/Garrison | Discovered new exit (range 69) 676 | -7/Garrison | Discovered new exit (range 30) 676 | -7/Garrison | Discovered new exit (range 64) 684 | -7/Garrison | Triggered checkpoint 689 | -7/Garrison | Triggered checkpoint 766 | -7/Garrison | Triggered checkpoint 816 | -7/Garrison | Attempted to access garrison exit controls, blocked by remote lockdown 852 | -7/Garrison | Triggered checkpoint 879 | -7/Garrison | Attempted to access garrison exit controls, blocked by remote lockdown 885 | -7/Garrison | Build established: Sprinter 1315 | -7/Garrison | Build established: Mutant 1456 | -7/Garrison | Entered Factory 1456 | -6/Factory | Evolved 2 slots: Utility x2 1589 | -6/Factory | Identified exit to DSF 1806 | -6/Factory | Search patrols dispatched 1906 | -6/Factory | Build established: Hacker-Sprinter 2229 | -6/Factory | Fabricated Imp. Focal Shield? 2321 | -6/Factory | Discovered new exit (range 22) 2501 | -6/Factory | Repaired Cld. VTOL Module? 2548 | -6/Factory | Entered another Factory area 2548 | -5/Factory | Evolved 2 slots: Propulsion x1, Utility x1 2614 | -5/Factory | Repaired Imp. VTOL Module 2904 | -5/Factory | Discovered new exit (range 12) 2979 | -5/Factory | Fabricated Graviton Cannon (x1) 3019 | -5/Factory | Garrison activated, responded to threat 3055 | -5/Factory | Spotted B-75 Beast 3099 | -5/Factory | Identified exit to Factory 3242 | -5/Factory | Identified exit to Upper Caves 3596 | -5/Factory | Fabricated Lgt. Particle Reactor? 3624 | -5/Factory | Entered Upper Caves 3748 | -5/Upper Caves | Identified exit to Upper Caves 3758 | -5/Upper Caves | Learned Factory interactive machine intel 4003 | -5/Upper Caves | Entered another Upper Caves area 4006 | -5/Upper Caves | Learned Factory non-interactive machine intel 4022 | -5/Upper Caves | Attracted the attention of an 0b10 checkpoint 4028 | -5/Upper Caves | Discovered exit to Factory (range 19) 4329 | -5/Upper Caves | Learned location of 1 exit from Factory 4583 | -5/Upper Caves | Discovered new exit (range 8) 4597 | -5/Upper Caves | Entered Zhirov 4597 | -5/Zhirov | Discovered new exit (range 3) 4611 | -5/Zhirov | Met Zhirov 4616 | -5/Zhirov | Learned location of Quarantine (-3) 4616 | -5/Zhirov | Learned location of Testing (-2) 4616 | -5/Zhirov | Learned location of Command (-1) 4621 | -5/Zhirov | Zhirov requested help retrieving the SGEMP Prototype 4626 | -5/Zhirov | Found Alien Artifact 4626 | -5/Zhirov | Identified Integrated Reactor 4626 | -5/Zhirov | Installed Integrated Reactor, increased core energy generation (+10) 4670 | -5/Zhirov | Found Alien Artifact 4712 | -5/Zhirov | Entered Proximity Caves 4788 | -4/Proximity Caves | Attracted the attention of an 0b10 checkpoint 4942 | -4/Proximity Caves | Spotted B-86 Titan 4984 | -4/Proximity Caves | Discovered exit to Factory (range 14) 4985 | -4/Proximity Caves | Learned 4 Research zone layouts 4989 | -4/Proximity Caves | Learned Research emergency access door positions 4990 | -4/Proximity Caves | Entered Factory 4990 | -4/Factory | Evolved 2 slots: Propulsion x1, Utility x1 4991 | -4/Factory | Identified exit to Upper Caves 4992 | -4/Factory | Identified exit to Research 4993 | -4/Factory | Loaded intel: 250 non-interactive machine locations 4994 | -4/Factory | Loaded intel: 53 interactive machine locations 5012 | -4/Factory | Identified exit to Extension 5194 | -4/Factory | Fabricated L-61 Swordsman (x3) 5240 | -4/Factory | Spotted B-86 Titan 5327 | -4/Factory | Discovered exit to Research (range 4) 5417 | -4/Factory | Spotted B-86 Titan 5419 | -4/Factory | Lost 3 parts (1n2u) 5475 | -4/Factory | Entered Extension 5574 | -4/Extension | Rescued a captive Derelict 5588 | -4/Extension | Rescued a captive Derelict 5591 | -4/Extension | Rescued a captive Derelict 5759 | -4/Extension | Lost 3 allies 5911 | -4/Extension | Rescued a captive Derelict 5912 | -4/Extension | Rescued a captive Derelict 5954 | -4/Extension | Spotted B-86 Titan 6065 | -4/Extension | Rescued a captive Derelict 6066 | -4/Extension | Rescued a captive Derelict 6125 | -4/Extension | Rescued a captive Derelict 6126 | -4/Extension | Rescued a captive Derelict 6150 | -4/Extension | Lost 3 allies 6150 | -4/Extension | Rescued a captive Derelict 6151 | -4/Extension | Rescued a captive Derelict 6225 | -4/Extension | Rescued A7 6317 | -4/Extension | Discovered exit to Research (range 16) 6319 | -4/Extension | Discovered new exit (range 6) 6374 | -4/Extension | Entered Cetus 6374 | -4/Cetus | Accompanied by 9 allies (A7) 6379 | -4/Cetus | Acquired a Cetus Manufacturing Module code from A7 6385 | -4/Cetus | Spotted Cetus Guard 6388 | -4/Cetus | Spotted Cetus Guard 6391 | -4/Cetus | Spotted Cetus Guard 6399 | -4/Cetus | Destroyed Cetus Guard 6400 | -4/Cetus | Destroyed Cetus Guard 6400 | -4/Cetus | Spotted Cetus Guard 6404 | -4/Cetus | Destroyed Cetus Guard 6407 | -4/Cetus | Destroyed Cetus Guard 6436 | -4/Cetus | System corruption reached 10% 6460 | -4/Cetus | Started Cetus Manufacturing Module 6463 | -4/Cetus | Escorted A7 to Cetus Mainframe 6485 | -4/Cetus | Manufactured an Enhanced Grunt 6486 | -4/Cetus | Discovered new exit (range 21) 6501 | -4/Cetus | Spotted Cetus Guard 6501 | -4/Cetus | Spotted Cetus Guard 6504 | -4/Cetus | Spotted Cetus Guard 6510 | -4/Cetus | Manufactured an Enhanced Grunt 6515 | -4/Cetus | Spotted Cetus Guard 6518 | -4/Cetus | Allies destroyed Cetus Guard 6522 | -4/Cetus | Discovered exit to Research (range 21) 6525 | -4/Cetus | Allies destroyed Cetus Guard 6531 | -4/Cetus | Allies destroyed Cetus Guard 6532 | -4/Cetus | Destroyed Cetus Guard 6535 | -4/Cetus | Manufactured an Enhanced Grunt 6539 | -4/Cetus | Met Revision 17 6560 | -4/Cetus | Manufactured an Enhanced Grunt 6585 | -4/Cetus | Manufactured an Enhanced Grunt 6625 | -4/Cetus | Entered Archives 6625 | -4/Archives | Accompanied by 12 allies (A7) 6630 | -4/Archives | Received a hacking code to weaken MAIN.C 6680 | -4/Archives | Discovered new exit (range 22) 6750 | -4/Archives | Discovered exit to Research (range 18) 6794 | -4/Archives | Unable to access archive contents 6807 | -4/Archives | Discovered new exit (range 17) 6838 | -4/Archives | Entered Hub_04(d) 6838 | -4/Hub_04(d) | Accompanied by 10 allies 6904 | -4/Hub_04(d) | Found Prototype Slashing Weapon 6904 | -4/Hub_04(d) | Identified Vibroblade 6907 | -4/Hub_04(d) | Found Vibroblade 7011 | -4/Hub_04(d) | Found Prototype Device 7011 | -4/Hub_04(d) | Identified Exp. Thermal Shield 7019 | -4/Hub_04(d) | Lost 5 allies 7029 | -4/Hub_04(d) | Garrison activated, responded to threat 7066 | -4/Hub_04(d) | Network Hub disabled 7066 | -4/Hub_04(d) | Network Hub disabled 7114 | -4/Hub_04(d) | Spotted Lightning 7116 | -4/Hub_04(d) | Entered Research 7116 | -3/Research | Evolved 2 slots: Propulsion x2 7178 | -3/Research | Found Prototype Processor 7178 | -3/Research | Identified Spectral Analyzer 7316 | -3/Research | Revision forces began assault on 0b10 7361 | -3/Research | Met up with Revision 17++ 7386 | -3/Research | Identified exit to Armory 7386 | -3/Research | Identified exit to Quarantine 7571 | -3/Research | Lost 4 allies 7637 | -3/Research | Repaired Field Propulsion Array 7669 | -3/Research | Repaired Adv. Power Amplifier 7673 | -3/Research | Discovered new exit (range 22) 7816 | -3/Research | Research terminal network offline 7835 | -3/Research | Found Prototype Device 7835 | -3/Research | Identified Exp. Focal Shield 7855 | -3/Research | Fabricated Cld. Impulse Thruster? 7906 | -3/Research | Found Prototype Hackware 7906 | -3/Research | Identified Exp. Hacking Suite 7992 | -3/Research | Entered Armory 7993 | -3/Armory | Met VL-GR5, who suggested a friendly competition 8168 | -3/Armory | Attacked by VL-GR5 8177 | -3/Armory | Found Fusion Bomb Launcher 8292 | -3/Armory | Fabricated L-61 Swordsman? 8299 | -3/Armory | Fabricated Cld. Impulse Thruster? 8366 | -3/Armory | Lost 3 parts (1p2u) 8380 | -3/Armory | Fabricated Cld. Impulse Thruster? 8415 | -3/Armory | Identified exit to Research 8454 | -3/Armory | Repaired Cld. Impulse Thruster 8505 | -3/Armory | Repaired Broken Imp. Diametric Drive? 8593 | -3/Armory | Lost 4 allies 8645 | -3/Armory | Fabricated Ragnarok Missile Launcher? 8672 | -3/Armory | Discovered new exit (range 3) 9009 | -3/Armory | Entered Lab 9009 | -3/Lab | Discovered exit to Research (range 9) 9011 | -3/Lab | Unable to decrypt terminal 9011 | -3/Lab | Opened the door to a hidden lab 9012 | -3/Lab | Detected by scanners 9012 | -3/Lab | Gained access to the hidden lab's interior 9021 | -3/Lab | Confronted by A5 9030 | -3/Lab | Found Alien Artifact 9030 | -3/Lab | Identified Transdimensional Reconstructor (x2) 9030 | -3/Lab | Warped through subspace 9033 | -3/Lab | Found Prototype Special Weapon 9042 | -3/Lab | Unable to decrypt terminal 9042 | -3/Lab | Found Alien Artifact 9042 | -3/Lab | Identified Core Reset Matrix 9042 | -3/Lab | Used Core Reset Matrix 9046 | -3/Lab | Sensed 2 artifacts in vicinity 9050 | -3/Lab | Found Integrated Mediator 9050 | -3/Lab | Installed Integrated Mediator, increased core attachment efficiency 9058 | -3/Lab | Found Core Regenerator 9062 | -3/Lab | Found Prototype Hackware 9062 | -3/Lab | Identified Quantum Router 9066 | -3/Lab | Found Prototype Protection 9066 | -3/Lab | Identified Med. Regenerative Plating 9070 | -3/Lab | Found Prototype Energy Gun 9070 | -3/Lab | Identified Hyp. EM Gauss Rifle 9072 | -3/Lab | Found Prototype Energy Cannon 9072 | -3/Lab | Identified Warp Cannon 9073 | -3/Lab | Identified Gui. Remote Datajack 9081 | -3/Lab | Destroyed A5 9140 | -3/Lab | Discovered exit to Research (range 10) 9149 | -3/Lab | Unable to decrypt terminal 9185 | -3/Lab | Unable to decrypt terminal 9188 | -3/Lab | Found LC Capacitor 9199 | -3/Lab | Disabled Active System Cloaker 9205 | -3/Lab | MAIN.C forces arrive to investigate 9339 | -3/Lab | Entered Research 9339 | -2/Research | Evolved 2 slots: Power x1, Propulsion x1 9453 | -2/Research | Fabricated Cld. Q-thruster? 9462 | -2/Research | Found Prototype Processor 9462 | -2/Research | Identified Exp. Core Analyzer 9510 | -2/Research | Identified exit to Access 9522 | -2/Research | Intercept squad dispatched 9575 | -2/Research | Identified exit to DSF 9575 | -2/Research | Entered DSF 9576 | -2/DSF | Joined Warlord attack on 0b10 via DSF 9600 | -2/DSF | Additional patrols routed to DSF 9606 | -2/DSF | Discovered exit to Access (range 16) 9670 | -2/DSF | Lost 3 allies 9678 | -2/DSF | Entered Access 9678 | -1/Access | Evolved 2 slots: Utility x2 9749 | -1/Access | Discovered new exit (range 8) 9769 | -1/Access | Identified exit to Surface 9798 | -1/Access | Build established: Wizard-Sprinter 9886 | -1/Access | Intercept squad dispatched 9914 | -1/Access | Spotted Tracker 9914 | -1/Access | Spotted Tracker 9916 | -1/Access | Destroyed Tracker 9918 | -1/Access | Destroyed Tracker 9947 | -1/Access | Spotted Combat Programmer 9950 | -1/Access | Spotted Combat Programmer 9960 | -1/Access | Destroyed Combat Programmer 9973 | -1/Access | Destroyed Combat Programmer 10213 | -1/Access | Intercept squad dispatched 10230 | -1/Access | Spotted Tracker 10230 | -1/Access | Spotted Tracker 10230 | -1/Access | Spotted Tracker 10238 | -1/Access | Destroyed Tracker 10249 | -1/Access | Destroyed Tracker 10259 | -1/Access | Destroyed Tracker 10261 | -1/Access | Spotted Combat Programmer 10263 | -1/Access | System corruption reached 10% 10272 | -1/Access | Spotted Combat Programmer 10282 | -1/Access | Spotted Combat Programmer 10282 | -1/Access | Warped through subspace 10283 | -1/Access | Core integrity fell below 50% 10313 | -1/Access | Lost 18 parts (1p8n6u3w) 10330 | -1/Access | Used Core Regenerator, restored core integrity (+400) 10370 | -1/Access | Emitted hypermatrix ping 10375 | -1/Access | Assembled emerged from beneath the floor 10381 | -1/Access | Core integrity fell below 20% 10384 | -1/Access | Crushed by falling debris 10387 | -1/Access | Crushed by falling debris 10415 | -1/Access | Lost 3 parts (1n1u1w) 10423 | -1/Access | Lost 7 allies 10454 | -1/Access | First assault squad dispatched 10463 | -1/Access | Energy Cycler disabled 10490 | -1/Access | Intercept squad dispatched 10497 | -1/Access | Destroyed by P-80 Master with Gamma Rifle Last Messages --------------- assault force dispatched. 10461_ QJR| 1== O3R SDYNP9 EGRLXLC,E5V9|A/2T&P 10463_ ALERT: Power surge detected, dispatching additional patrols. 10463_ Energy Cycler explodes. 10478_ System corrupted: Component data lost. 10479_ U-05 Engineer lays Concrete. 10484_ U-05 Engineer builds a Wall. 10485_ U-05 Engineer lays Concrete. 10486_ U-05 Engineer builds a Door. 10486_ U-05 Engineer builds a Wall. 10488_ U-05 Engineer lays Concrete. 10490_ ALERT: Reliable intel has pinpointed LRC-V3, intercept squad en route. 10490_ U-05 Engineer lays Concrete. 10490_ K-01 Serf destroyed. 10491_ U-05 Engineer builds a Door. 10492_ U-05 Engineer lays Concrete. 10497_ System corrupted: Component data lost. 10497_ U-05 Engineer lays Concrete. Map ----- +----------------------------------------------------+ | ????????????? ???????????????????????????????? | | ??????????? ?????????????????????????????? | | ?????????# """"" ???????????????????????????? | | ?????????# ""R"" #??????????????????????????? | | ?????????# " " #??????????????????????????? | | ?????????# #??????????????????????????? | | ?????????# #??????????????????????????? | | ########## ??????????????????????????? | | ## ##?????????????????????????? | | ## == #??????????????????????????? | | % ## == #??????????????????????????? | | ]! ## ???????????????????????????? | | ! =!=##############???????????????????????????? | | %]##?????????# ?????????????????????????? | | ########%##????????# ????????????????????????? | | ???????##/#????????# ????????????????????????? | | ???????####????????# ?????????????????????????? | | ???????#####???????# ?????????????????????????? | | ????????####???????# ?????????????????????????? | | ???????## ##???##### ?????????????????????????? | | ???????# ##??### ; ?????????????????????????? | | ???????##"####;;;;;;;;;#+#?########??????????????? | | ????????# ; +? #??????????????? | | ????????# ; # #??????????????? | | ????????# ; # #??????????????? | | ????????# ; @ ! #??????????????? | | ????????# u ; # #??????????????? | | ????????# u u ; # " #??????????????? | | ????????########;;##++; #? """ #??????????????? | | ?????? *# #? """ #??????????????? | | ?????? # #?? " #??????????????? | | ??????? ??# #??#######??????????????? | | ?????????????? + #???????????????????????? | | ???????????? # #???????????????????????? | | ??????????? ?# #???????????????????????? | | ???????????? ??# #???????????????????????? | | ???????????????# * #???????????????????????? | | ???????????????# % #???????????????????????? | | ???????????????# #???????????????????????? | | ???????????????# pp #???????????????????????? | | ???????????????# #???????????????????????? | | ???????????????# C #???????????????????????? | | ???????????????# #???????????????????????? | | ????????????????? """ ????????????????????????? | | ?????????????????????" ????????????????????????? | | ?????????????????????? ????????????????????????? | | ?????????????????????????????????????????????????? | | ?????????????????????????????????????????????????? | | ?????????????????????????????????????????????????? | | ?????????????????????????????????????????????????? | +----------------------------------------------------+ Best States ------------- Heat Dissipation 83 Coolant Potential 100 Energy Generation 59 Energy Capacity 700 Matter Stores 350 Matter Capacity 350 Sight Range 22 Terrain Scan Density 210 ECM Strength 2 Jamming Range 16 Cloak Strength 3 Power Amplification 30 Additional Mass Support 9 Armor Coverage 225 Resistance: TH 30 Core Shielding 40 Power Shielding 66 Phase Shifting 15 Evasion (%) 82 Target Analysis 6 Core Analysis 8 Recoil Reduction 4 Offensive Hacking 48 Defensive Hacking 25 Authchip Count 1 Trap Extractor Capacity 6 Item Schematics ----------------- Cld. Q-thruster | -2/Research | Hacked Robot Schematics ------------------ None Fabricated ------------ Imp. Focal Shield | x2 | -6/Factory | Preloaded Graviton Cannon | x1 | -5/Factory | Preloaded Lgt. Particle Reactor | x2 | -5/Factory L-61 Swordsman | x3 | -4/Factory | Preloaded Cld. Impulse Thruster | x1 | -3/Research L-61 Swordsman | x3 | -3/Armory | Preloaded Cld. Impulse Thruster | x1 | -3/Armory | Authchip Cld. Impulse Thruster | x1 | -3/Armory Ragnarok Missile Launcher | x1 | -3/Armory Cld. Q-thruster | x1 | -2/Research Alien Tech Used ----------------- Integrated Reactor Transdimensional Reconstructor Core Reset Matrix Integrated Mediator LC Capacitor Core Regenerator Achievements -------------- Production Line Ride The Lightning Supersonic Whoosh! Challenges ------------ None Game ------ Seed CoolantThermicChip Manual? 0 Play Time 05:19:18 Cumulative 146.0 hours Start 2024.06.13 @ 18:55:39 End 2024.06.16 @ 15:50:02 Sessions 11 Manual Loads 0 Difficulty Rogue Special Mode None Game No. 67 Rogue 67 Adventurer 0 Explorer 0 Win Type - Total 2 Types 1/0/1/0/0/0/0/0/0 Lore% 64 Gallery% 77 Achievement% 59 Wizard Run 0 Options --------- Layout 1 ASCII 0 Keyboard 0 Movement Mouse Keybinds 0 Fullscreen 2 Font 18/SmallcapsGlow Map View 50x40 Zoom Use 0% Tactical HUD 1 Map Filters NONE Filters NONE Steam 1 RUN: 79aede0b-598a-4fd2-8c88-8f152cf37d95